fUSD/lending_fUSD_20241001
["ID","MTS","AMOUNT","RATE_DAILY","PERIOD"]
[339669919,1727820776577,-592.48,0.00039726,120]
[339669920,1727820776586,-767.06,0.00039726,120]
[339669921,1727820776595,-500.0,0.00039726,120]
[339669922,1727820776604,-305.33306242,0.00039726,120]
[339669923,1727820776614,-1332.74,0.00039726,120]
[339669924,1727820776623,-1628.64,0.00039726,120]
[339669925,1727820776632,-314.60866077,0.00039726,120]
[339669926,1727820776641,-891.92,0.00039726,120]
[339669927,1727820776651,-879.96,0.00039726,120]
[339669928,1727820776663,-870.15,0.00039726,120]
[339669929,1727820776672,-3053.04,0.00039726,120]
[339669930,1727820776681,-500.0,0.00039726,120]
[339669931,1727820776690,-500.0,0.00039726,120]
[339669932,1727820776699,-500.0,0.00039726,120]
[339669933,1727820776708,-500.0,0.00039726,120]
[339669934,1727820776717,-1765.25,0.00039726,120]
[339669935,1727820776726,-500.0,0.00039726,120]
[339669936,1727820776738,-2848.92,0.00039726,120]
[339669937,1727820776747,-500.0,0.00039726,120]
[339669938,1727820776756,-2618.25,0.00039726,120]
[339669939,1727820776765,-733.76,0.00039726,120]
[339669940,1727820776774,-500.0,0.00039726,120]
[339669941,1727820776783,-922.35,0.00039726,2]
[339669942,1727820776796,-1452.8,0.00039726,120]
[339669943,1727820776805,-745.69,0.00039726,120]
[339669944,1727820776814,-515.59,0.00039726,120]
[339669945,1727820776823,-504.12,0.00039726,120]
[339669946,1727820776831,-748.91,0.00039726,30]
[339669947,1727820776840,-5228.9,0.00039726,120]
[339669948,1727820776849,-500.0,0.00039726,120]
[339669949,1727820776859,-1099.12,0.00039726,120]
[339669950,1727820776867,-500.0,0.00039726,120]
[339669951,1727820776877,-925.91,0.00039726,120]
[339669952,1727820776886,-3838.42,0.00039726,120]
[339669953,1727820776896,-500.0,0.00039726,120]
[339669954,1727820776905,-562.84,0.00039726,120]
[339669955,1727820776914,-983.15,0.00039726,120]
[339669956,1727820776923,-585.77,0.00039726,120]
[339669957,1727820776932,-930.9,0.00039726,120]
[339669958,1727820776941,-500.0,0.00039726,120]
[339669959,1727820776950,-500.0,0.00039726,120]
[339669960,1727820776958,-1347.98,0.00039726,120]
[339669961,1727820776967,-2842.0,0.00039726,120]
[339669962,1727820776976,-500.0,0.00039726,120]
[339669963,1727820776985,-2740.56,0.00039726,120]
[339669964,1727820776995,-1496.77,0.00039726,15]
[339669965,1727820777004,-500.0,0.00039726,120]
[339669966,1727820777013,-678.65,0.00039726,120]
[339669967,1727820777022,-1862.99,0.00039726,120]
[339669968,1727820777031,-500.0,0.00039726,120]
[339669969,1727820777040,-500.0,0.00039726,120]
[339669970,1727820777055,-1682.2,0.00039726,120]
[339669971,1727820777064,-1067.94,0.00039726,120]
[339669972,1727820777073,-871.43,0.00039726,120]
[339669973,1727820777082,-500.0,0.00039726,120]
[339669974,1727820777091,-500.0,0.00039726,120]
[339669975,1727820777100,-625.16,0.00039726,120]
[339669976,1727820777109,-500.0,0.00039726,120]
[339669977,1727820777119,-1931.66,0.00039726,120]
[339669978,1727820777128,-1349.45,0.00039726,120]
[339669979,1727820777137,-1300.41,0.00039726,120]
[339669980,1727820777146,-500.0,0.00039726,120]
[339669981,1727820777155,-3574.07,0.00039726,120]
[339669982,1727820777165,-500.0,0.00039726,120]
[339669983,1727820777174,-920.76,0.00039726,120]
[339669984,1727820777183,-500.0,0.00039726,120]
[339669985,1727820777192,-3172.4,0.00039726,120]
[339669986,1727820777201,-1193.1,0.00039726,120]
[339669987,1727820777209,-500.0,0.00039726,120]
[339669988,1727820777219,-1476.53,0.00039726,120]
[339669989,1727820777227,-461.616063,0.00039726,120]
[339669990,1727820777236,-1359.38,0.00039726,120]
[339669991,1727820777246,-500.0,0.00039726,120]
[339669992,1727820777255,-1219.73,0.00039726,120]
[339669993,1727820777264,-983.64,0.00039726,120]
[339669994,1727820777273,-500.0,0.00039726,120]
[339669995,1727820777282,-856.28,0.00039726,120]
[339669996,1727820777293,-1226.11,0.00039726,120]
[339669997,1727820777302,-3907.21,0.00039726,120]
[339669998,1727820777311,-2101.16,0.00039726,120]
[339669999,1727820777320,-663.63,0.00039726,120]
[339670000,1727820777330,-500.0,0.00039726,120]
[339670001,1727820777339,-500.0,0.00039726,120]
[339670002,1727820777348,-5292.68,0.00039726,120]
[339670003,1727820777357,-2234.39,0.00039726,120]
[339670004,1727820777366,-267.05026269,0.00039726,120]
[339670005,1727820777375,-1469.82,0.00039726,120]
[339670006,1727820777385,-500.0,0.00039726,120]
[339670007,1727820777394,-500.0,0.00039726,120]
[339670008,1727820777403,-1070.08,0.00039726,120]
[339670009,1727820777412,-500.0,0.00039726,120]
[339670010,1727820777421,-500.0,0.00039726,120]
[339670011,1727820777430,-1923.04,0.00039726,120]
[339670012,1727820777439,-500.0,0.00039726,120]
[339670013,1727820777448,-857.77,0.00039726,120]
[339670014,1727820777457,-2261.0,0.00039726,120]
[339670015,1727820777467,-1062.38,0.00039726,120]
[339670016,1727820777477,-379.26244131,0.00039726,120]
[339670017,1727820777486,-500.0,0.00039726,120]
[339670018,1727820777495,-1358.61,0.00039726,120]
[339670019,1727820777505,-907.03,0.00039726,120]
[339670020,1727820777514,-528.25,0.00039726,120]
[339670021,1727820777523,-1099.94,0.00039726,120]
[339670022,1727820777533,-4156.88,0.00039726,120]
[339670023,1727820777543,-500.0,0.00039726,120]
[339670024,1727820777552,-660.82,0.00039726,120]
[339670025,1727820777562,-2560.29,0.00039726,120]
[339670026,1727820777571,-3441.48,0.00039726,7]
[339670027,1727820777580,-580.8,0.00039726,120]
[339670028,1727820777590,-500.0,0.00039726,120]
[339670029,1727820777599,-985.41,0.00039726,120]
[339670030,1727820777609,-1225.48,0.00039726,120]
[339670031,1727820777618,-1575.11,0.00039726,120]
[339670032,1727820777627,-500.0,0.00039726,120]
[339670033,1727820777637,-967.16,0.00039726,120]
[339670034,1727820777647,-1027.36,0.00039726,120]
[339670035,1727820777659,-2849.3,0.00039726,120]
[339670036,1727820777669,-1745.08,0.00039726,120]
[339670037,1727820777679,-705.04,0.00039726,120]
[339670038,1727820777689,-500.0,0.00039726,120]
[339670039,1727820777699,-529.51,0.00039726,120]
[339670040,1727820777709,-500.0,0.00039726,120]
[339670041,1727820777718,-500.0,0.00039726,120]
[339670042,1727820777728,-1708.87,0.00039726,120]
[339670043,1727820777738,-500.0,0.00039726,120]
[339670044,1727820777748,-3262.83,0.00039726,120]
[339670045,1727820777757,-629.79831115,0.00039726,90]
[339670046,1727820777766,-853.84,0.00039726,120]
[339670047,1727820777776,-3136.81,0.00039726,120]
[339670048,1727820777785,-5703.42,0.00039726,120]
[339670049,1727820777795,-500.0,0.00039726,120]
[339670050,1727820777804,-4081.48,0.00039726,120]
[339670051,1727820777814,-500.0,0.00039726,120]
[339670052,1727820777823,-2086.44,0.00039726,120]
[339670053,1727820777832,-3712.01,0.00039726,120]
[339670054,1727820777841,-871.7,0.00039726,120]
[339670055,1727820777850,-500.0,0.00039726,120]
[339670056,1727820777859,-629.9,0.00039726,120]
[339670057,1727820777873,-634.09,0.00039726,120]
[339670058,1727820777883,-500.0,0.00039726,120]
[339670059,1727820777892,-2173.94,0.00039726,120]
[339670060,1727820777902,-975.58,0.00039726,120]
[339670061,1727820777911,-339.26430833,0.00039726,120]
[339670062,1727820777921,-1402.75,0.00039726,120]
[339670063,1727820777930,-500.0,0.00039726,120]
[339670064,1727820777939,-880.81,0.00039726,120]
[339670065,1727820777948,-2426.66,0.00039726,120]
[339670066,1727820777957,-902.4,0.00039726,120]
[339670067,1727820777966,-500.0,0.00039726,120]
[339670068,1727820777976,-666.13,0.00039726,120]
[339670069,1727820777985,-500.0,0.00039726,120]
[339670070,1727820777994,-500.0,0.00039726,120]
[339670071,1727820778003,-500.0,0.00039726,120]
[339670072,1727820778011,-1238.19,0.00039726,120]
[339670073,1727820778021,-500.0,0.00039726,120]
[339670074,1727820778031,-907.98,0.00039726,120]
[339670075,1727820778040,-2210.55,0.00039726,120]
[339670076,1727820778050,-1798.18,0.00039726,120]
[339670077,1727820778060,-500.0,0.00039726,120]
[339670078,1727820778069,-2470.03,0.00039726,120]
[339670079,1727820778078,-996.57,0.00039726,120]
[339670080,1727820778087,-500.0,0.00039726,120]
[339670081,1727820778096,-2061.0,0.00039726,120]
[339670082,1727820778105,-500.0,0.00039726,120]
[339670083,1727820778114,-500.0,0.00039726,120]
[339670084,1727820778123,-500.0,0.00039726,120]
[339670085,1727820778132,-602.42,0.00039726,120]
[339670086,1727820778142,-500.0,0.00039726,120]
[339670087,1727820778151,-1172.0,0.00039726,120]
[339670088,1727820778161,-1419.38,0.00039726,120]
[339670089,1727820778170,-3467.23,0.00039726,120]
[339670090,1727820778180,-1691.93,0.00039726,120]
[339670091,1727820778189,-500.0,0.00039726,120]
[339670092,1727820778199,-500.0,0.00039726,120]
[339670093,1727820778209,-500.0,0.00039726,120]
[339670094,1727820778218,-4101.04,0.00039726,120]
[339670095,1727820778228,-500.0,0.00039726,120]
[339670096,1727820778237,-500.0,0.00039726,120]
[339670097,1727820778247,-677.33,0.00039726,120]
[339670098,1727820778257,-833.05,0.00039726,120]
[339670099,1727820778266,-500.0,0.00039726,120]
[339670100,1727820778276,-3464.91,0.00039726,2]
[339670101,1727820778285,-1956.73,0.00039726,120]
[339670102,1727820778296,-1946.23,0.00039726,120]
[339670103,1727820778306,-617.9,0.00039726,120]
[339670104,1727820778315,-1639.32,0.00039726,120]
[339670105,1727820778325,-2100.71,0.00039726,120]
[339670106,1727820778335,-500.0,0.00039726,120]
[339670107,1727820778345,-1660.84,0.00039726,120]
[339670108,1727820778355,-2862.61,0.00039726,120]
[339670109,1727820778365,-500.0,0.00039726,120]
[339670110,1727820778375,-500.0,0.00039726,120]
[339670111,1727820778385,-500.0,0.00039726,7]
[339670112,1727820778395,-500.0,0.00039726,120]
[339670113,1727820778405,-500.0,0.00039726,120]
[339670114,1727820778415,-500.0,0.00039726,120]
[339670115,1727820778425,-2844.86,0.00039726,120]
[339670116,1727820778435,-1836.7,0.00039726,120]
[339670117,1727820778444,-1702.59,0.00039726,120]
[339670118,1727820778454,-1513.2,0.00039726,120]
[339670119,1727820778463,-500.0,0.00039726,120]
[339670120,1727820778473,-500.0,0.00039726,120]
[339670121,1727820778483,-562.19,0.00039726,120]
[339670122,1727820778493,-500.0,0.00039726,120]
[339670123,1727820778502,-4515.07,0.00039726,120]
[339670124,1727820778512,-527.16,0.00039726,120]
[339670125,1727820778522,-713.01,0.00039726,120]
[339670126,1727820778532,-2408.38,0.00039726,120]
[339670127,1727820778542,-1779.61,0.00039726,120]
[339670128,1727820778552,-1463.81,0.00039726,120]
[339670129,1727820778562,-754.74,0.00039726,120]
[339670130,1727820778572,-1385.69,0.00039726,120]
[339670131,1727820778582,-909.5,0.00039726,120]
[339670132,1727820778592,-500.0,0.00039726,120]
[339670133,1727820778602,-727.88,0.00039726,120]
[339670134,1727820778611,-500.0,0.00039726,120]
[339670135,1727820778622,-500.0,0.00039726,120]
[339670136,1727820778632,-500.0,0.00039726,120]
[339670137,1727820778642,-565.09,0.00039726,120]
[339670138,1727820778652,-1971.06,0.00039726,120]
[339670139,1727820778665,-500.0,0.00039726,120]
[339670140,1727820778675,-1489.52,0.00039726,120]
[339670141,1727820778685,-532.71,0.00039726,120]
[339670142,1727820778695,-631.55,0.00039726,120]
[339670143,1727820778707,-1129.67,0.00039726,120]
[339670144,1727820778717,-2949.18,0.00039726,120]
[339670145,1727820778727,-321.04919424,0.00039726,7]
[339670146,1727820778739,-632.15,0.00039726,120]
[339670147,1727820778750,-3225.97,0.00039726,120]
[339670148,1727820778760,-692.07,0.00039726,120]
[339670149,1727820778770,-534.81,0.00039726,120]
[339670150,1727820778780,-1721.35,0.00039726,120]
[339670151,1727820778790,-500.0,0.00039726,120]
[339670152,1727820778800,-500.0,0.00039726,120]
[339670153,1727820778810,-500.0,0.00039726,120]
[339670154,1727820778819,-546.17,0.00039726,120]
[339670155,1727820778829,-500.0,0.00039726,120]
[339670156,1727820778839,-500.0,0.00039726,120]
[339670157,1727820778849,-500.0,0.00039726,120]
[339670158,1727820778859,-650.82,0.00039726,120]
[339670159,1727820778869,-500.0,0.00039726,120]
[339670160,1727820778879,-500.0,0.00039726,120]
[339670161,1727820778889,-500.0,0.00039726,120]
[339670162,1727820778899,-1437.52,0.00039726,120]
[339670163,1727820778909,-2907.14,0.00039726,120]
[339670164,1727820778920,-518.0,0.00039726,120]
[339670165,1727820778930,-2926.57,0.00039726,120]
[339670166,1727820778940,-1025.17,0.00039726,120]
[339670167,1727820778950,-500.0,0.00039726,120]
[339670168,1727820778960,-500.0,0.00039726,120]
[339670169,1727820778970,-1407.77,0.00039726,120]
[339670170,1727820778981,-860.32,0.00039726,120]
[339670171,1727820778991,-730.5,0.00039726,120]
[339670172,1727820779002,-1143.54,0.00039726,120]
[339670173,1727820779012,-500.0,0.00039726,120]
[339670174,1727820779023,-500.0,0.00039726,120]
[339670175,1727820779033,-1168.59,0.00039726,120]
[339670176,1727820779043,-500.0,0.00039726,120]
[339670177,1727820779054,-500.0,0.00039726,120]
[339670178,1727820779065,-773.63,0.00039726,120]
[339670179,1727820779075,-500.0,0.00039726,120]
[339670180,1727820779085,-660.94,0.00039726,120]
[339670181,1727820779095,-3040.17,0.00039726,120]
[339670182,1727820779106,-500.0,0.00039726,120]
[339670183,1727820779116,-942.17,0.00039726,120]
[339670184,1727820779127,-705.58,0.00039726,120]
[339670185,1727820779137,-668.07,0.00039726,120]
[339670186,1727820779147,-4496.99,0.00039726,120]
[339670187,1727820779158,-500.0,0.00039726,120]
[339670188,1727820779168,-1286.0,0.00039726,120]
[339670189,1727820779179,-500.0,0.00039726,120]
[339670190,1727820779189,-500.0,0.00039726,120]
[339670191,1727820779200,-3133.99,0.00039726,120]
[339670192,1727820779210,-500.0,0.00039726,120]
[339670193,1727820779220,-1188.4,0.00039726,120]
[339670194,1727820779230,-1397.93,0.00039726,120]
[339670195,1727820779240,-629.91,0.00039726,120]
[339670196,1727820779250,-500.0,0.00039726,120]
[339670197,1727820779261,-500.0,0.00039726,120]
[339670198,1727820779271,-3743.21,0.00039726,120]
[339670199,1727820779281,-500.0,0.00039726,120]
[339670200,1727820779291,-500.0,0.00039726,120]
[339670201,1727820779301,-969.44,0.00039726,120]
[339670202,1727820779311,-1991.74,0.00039726,120]
[339670203,1727820779322,-1053.39,0.00039726,120]
[339670204,1727820779333,-1515.24,0.00039726,120]
[339670205,1727820779343,-500.0,0.00039726,120]
[339670206,1727820779354,-500.0,0.00039726,120]
[339670207,1727820779365,-500.0,0.00039726,120]
[339670208,1727820779375,-500.0,0.00039726,120]
[339670209,1727820779385,-700.15,0.00039726,120]
[339670210,1727820779395,-500.0,0.00039726,120]
[339670211,1727820779406,-1506.61,0.00039726,120]
[339670212,1727820779416,-515.1,0.00039726,120]
[339670213,1727820779426,-567.36,0.00039726,120]
[339670214,1727820779437,-1051.28,0.00039726,120]
[339670215,1727820779447,-597.89,0.00039726,120]
[339670216,1727820779457,-500.0,0.00039726,120]
[339670217,1727820779468,-956.15,0.00039726,120]
[339670218,1727820779479,-500.0,0.00039726,120]
[339670219,1727820779490,-500.0,0.00039726,120]
[339670220,1727820779501,-3675.33,0.00039726,120]
[339670221,1727820779512,-500.0,0.00039726,120]
[339670222,1727820779523,-1785.58,0.00039726,120]
[339670223,1727820779533,-500.0,0.00039726,120]
[339670224,1727820779543,-535.14,0.00039726,120]
[339670225,1727820779553,-500.0,0.00039726,120]
[339670226,1727820779563,-500.0,0.00039726,120]
[339670227,1727820779574,-1336.37,0.00039726,120]
[339670228,1727820779584,-500.0,0.00039726,120]
[339670229,1727820779595,-500.0,0.00039726,120]
[339670230,1727820779605,-2586.99,0.00039726,120]
[339670231,1727820779615,-500.0,0.00039726,120]
[339670232,1727820779626,-500.0,0.00039726,120]
[339670233,1727820779637,-778.95,0.00039726,120]
[339670234,1727820779647,-2647.49,0.00039726,120]
[339670235,1727820779660,-1825.45,0.00039726,120]
[339670236,1727820779671,-890.0,0.00039726,120]
[339670237,1727820779681,-500.0,0.00039726,120]
[339670238,1727820779691,-954.63,0.00039726,120]
[339670239,1727820779703,-500.0,0.00039726,120]
[339670240,1727820779713,-500.0,0.00039726,120]
[339670241,1727820779723,-500.0,0.00039726,120]
[339670242,1727820779735,-3668.63,0.00039726,120]
[339670243,1727820779746,-769.11,0.00039726,120]
[339670244,1727820779757,-5154.82,0.00039726,120]
[339670245,1727820779767,-500.0,0.00039726,120]
[339670246,1727820779778,-500.0,0.00039726,120]
[339670247,1727820779789,-500.0,0.00039726,120]
[339670248,1727820779801,-947.87,0.00039726,120]
[339670249,1727820779811,-500.0,0.00039726,120]
[339670250,1727820779824,-1126.54,0.00039726,120]
[339670251,1727820779834,-2928.52,0.00039726,120]
[339670252,1727820779846,-500.0,0.00039726,120]
[339670253,1727820779856,-500.0,0.00039726,120]
[339670254,1727820779866,-895.68,0.00039726,120]
[339670255,1727820779876,-500.0,0.00039726,120]
[339670256,1727820779886,-500.0,0.00039726,120]
[339670257,1727820779896,-3582.35,0.00039726,120]
[339670258,1727820779906,-626.88,0.00039726,120]
[339670259,1727820779917,-3186.82,0.00039726,120]
[339670260,1727820779927,-500.0,0.00039726,120]
[339670261,1727820779938,-500.0,0.00039726,120]
[339670262,1727820779949,-881.7,0.00039726,120]
[339670263,1727820779960,-500.0,0.00039726,120]
[339670264,1727820779970,-500.0,0.00039726,120]
[339670265,1727820779981,-500.0,0.00039726,120]
[339670266,1727820779991,-1958.05,0.00039726,120]
[339670267,1727820780003,-557.58,0.00039726,120]
[339670268,1727820780014,-767.78,0.00039726,120]
[339670269,1727820780024,-5802.43,0.00039726,120]
[339670270,1727820780035,-500.0,0.00039726,120]
[339670271,1727820780048,-825.32,0.00039726,120]
[339670272,1727820780065,-859.85,0.00039726,120]
[339670273,1727820780077,-4024.18,0.00039726,120]
[339670274,1727820780087,-500.0,0.00039726,120]
[339670275,1727820780098,-600.91,0.00039726,120]
[339670276,1727820780108,-1644.4,0.00039726,120]
[339670277,1727820780119,-500.0,0.00039726,120]
[339670278,1727820780129,-500.0,0.00039726,120]
[339670279,1727820780139,-1605.08,0.00039726,120]
[339670280,1727820780151,-500.0,0.00039726,120]
[339670281,1727820780162,-500.0,0.00039726,120]
[339670282,1727820780172,-3238.34,0.00039726,120]
[339670283,1727820780183,-500.0,0.00039726,120]
[339670284,1727820780193,-500.0,0.00039726,120]
[339670285,1727820780204,-1054.99,0.00039726,120]
[339670286,1727820780214,-500.0,0.00039726,120]
[339670287,1727820780224,-3916.65,0.00039726,120]
[339670288,1727820780235,-715.33,0.00039726,120]
[339670289,1727820780246,-500.0,0.00039726,120]
[339670290,1727820780256,-705.94,0.00039726,120]
[339670291,1727820780267,-974.68,0.00039726,120]
[339670292,1727820780277,-500.0,0.00039726,120]
[339670293,1727820780288,-6174.97,0.00039726,120]
[339670294,1727820780301,-500.0,0.00039726,120]
[339670295,1727820780312,-658.12,0.00039726,120]
[339670296,1727820780322,-775.59,0.00039726,120]
[339670297,1727820780332,-500.0,0.00039726,120]
[339670298,1727820780343,-500.0,0.00039726,120]
[339670299,1727820780353,-500.0,0.00039726,120]
[339670300,1727820780364,-501.30867506,0.00039726,120]
[339670301,1727820780374,-1372.39,0.00039726,120]
[339670302,1727820780384,-1520.88,0.00039726,120]
[339670303,1727820780395,-500.0,0.00039726,120]
[339670304,1727820780405,-500.0,0.00039726,120]
[339670305,1727820780752,-1297.71,0.00039726,120]
[339670306,1727820780762,-500.0,0.00039726,120]
[339670307,1727820780771,-500.0,0.00039726,120]
[339670308,1727820780781,-3150.26,0.00039726,120]
[339670309,1727820780791,-500.0,0.00039726,120]
[339670310,1727820780810,-500.0,0.00039726,120]
[339670311,1727820780820,-5095.45,0.00039726,120]
[339670312,1727820780830,-3394.19,0.00039726,120]
[339670313,1727820780840,-437.72127927,0.00039726,120]
[339670314,1727820780849,-1142.69,0.00039726,120]
[339670315,1727820780858,-1053.24,0.00039726,120]
[339670316,1727820780867,-2187.58,0.00039726,120]
[339670317,1727820780877,-4714.56,0.00039726,120]
[339670318,1727820780886,-500.0,0.00039726,120]
[339670319,1727820780896,-1671.69,0.00039726,120]
[339670320,1727820780905,-3883.23,0.00039726,120]
[339670321,1727820780914,-500.0,0.00039726,120]
[339670322,1727820780924,-17549.28,0.00039726,120]
[339670323,1727820780933,-1292.14,0.00039726,120]
[339670324,1727820780943,-788.0,0.00039726,120]
[339670325,1727820780952,-500.0,0.00039726,120]
[339670326,1727820780961,-638.54,0.00039726,120]
[339670327,1727820780971,-500.0,0.00039726,120]
[339670328,1727820780980,-396.01,0.00039726,7]
[339670329,1727820780990,-1235.86,0.00039726,120]
[339670330,1727820781000,-2860.26,0.00039726,120]
[339670331,1727820781009,-1610.29,0.00039726,120]
[339670332,1727820781019,-500.0,0.00039726,120]
[339670333,1727820781031,-500.0,0.00039726,120]
[339670334,1727820781041,-712.51,0.00039726,120]
[339670335,1727820781053,-2386.75,0.00039726,120]
[339670336,1727820781063,-806.81,0.00039726,120]
[339670337,1727820781072,-500.0,0.00039726,120]
[339670338,1727820781082,-500.0,0.00039726,120]
[339670339,1727820781092,-4893.53,0.00039726,120]
[339670340,1727820781102,-767.39,0.00039726,120]
[339670341,1727820781112,-500.0,0.00039726,120]
[339670342,1727820781122,-825.12,0.00039726,120]
[339670343,1727820781132,-500.0,0.00039726,120]
[339670344,1727820781142,-1123.02,0.00039726,120]
[339670345,1727820781152,-1398.64,0.00039726,120]
[339670346,1727820781163,-2555.24,0.00039726,120]
[339670347,1727820781173,-3466.7,0.00039726,120]
[339670348,1727820781183,-2011.18,0.00039726,120]
[339670349,1727820781192,-500.0,0.00039726,120]
[339670350,1727820781202,-2209.57,0.00039726,120]
[339670351,1727820781212,-500.0,0.00039726,120]
[339670352,1727820781221,-1207.96,0.00039726,120]
[339670353,1727820781232,-500.0,0.00039726,120]
[339670354,1727820781242,-2617.4,0.00039726,120]
[339670355,1727820781251,-4914.93,0.00039726,120]
[339670356,1727820781262,-1890.45,0.00039726,120]
[339670357,1727820781272,-500.0,0.00039726,120]
[339670358,1727820781282,-1649.36,0.00039726,120]
[339670359,1727820781292,-429.60852725,0.00039726,120]
[339670360,1727820781304,-500.0,0.00039726,120]
[339670361,1727820781314,-2149.87,0.00039726,120]
[339670362,1727820781323,-2406.64,0.00039726,120]
[339670363,1727820781334,-1461.25,0.00039726,120]
[339670364,1727820781345,-1084.08,0.00039726,120]
[339670365,1727820781355,-1568.55,0.00039726,120]
[339670366,1727820781365,-500.0,0.00039726,120]
[339670367,1727820781375,-4446.49,0.00039726,120]
[339670368,1727820781385,-1930.59,0.00039726,120]
[339670369,1727820781395,-500.0,0.00039726,120]
[339670370,1727820781406,-867.75,0.00039726,120]
[339670371,1727820781416,-1023.78,0.00039726,120]
[339670372,1727820781426,-2028.77,0.00039726,120]
[339670373,1727820781436,-1990.55,0.00039726,120]
[339670374,1727820781446,-500.0,0.00039726,120]
[339670375,1727820781457,-500.0,0.00039726,120]
[339670376,1727820781467,-500.0,0.00039726,120]
[339670377,1727820781477,-4386.65,0.00039726,120]
[339670378,1727820781487,-1031.31,0.00039726,120]
[339670379,1727820781498,-682.28,0.00039726,120]
[339670380,1727820781508,-500.0,0.00039726,120]
[339670381,1727820781518,-500.0,0.00039726,120]
[339670382,1727820781529,-500.0,0.00039726,120]
[339670383,1727820781539,-500.0,0.00039726,120]
[339670384,1727820781551,-507.09101349,0.00039726,2]
[339670385,1727820781561,-4452.22,0.00039726,120]
[339670386,1727820781570,-525.33,0.00039726,120]
[339670387,1727820781581,-959.26,0.00039726,120]
[339670388,1727820781590,-503.80722825,0.00039726,120]
[339670389,1727820781601,-400.78502607,0.00039726,120]
[339670390,1727820781611,-1661.65,0.00039726,120]
[339670391,1727820781620,-677.36,0.00039726,120]
[339670392,1727820781630,-500.0,0.00039726,120]
[339670393,1727820781640,-2137.91,0.00039726,120]
[339670394,1727820781650,-1601.79,0.00039726,120]
[339670395,1727820781663,-854.5,0.00039726,120]
[339670396,1727820781673,-500.0,0.00039726,120]
[339670397,1727820781683,-790.95,0.00039726,120]
[339670398,1727820781693,-632.12103347,0.00039726,120]
[339670399,1727820781704,-500.0,0.00039726,120]
[339670400,1727820781714,-500.0,0.00039726,120]
[339670401,1727820781725,-500.0,0.00039726,120]
[339670402,1727820781736,-4846.83,0.00039726,120]
[339670403,1727820781746,-500.0,0.00039726,120]
[339670404,1727820781756,-1114.17,0.00039726,120]
[339670405,1727820781767,-12554.0,0.00039726,21]
[339670406,1727820781777,-500.0,0.00039726,120]
[339670407,1727820781787,-1529.29,0.00039726,120]
[339670408,1727820781800,-709.79,0.00039726,120]
[339670409,1727820781810,-500.0,0.00039726,120]
[339670410,1727820781821,-1511.8,0.00039726,120]
[339670411,1727820781832,-1767.66,0.00039726,120]
[339670412,1727820781843,-877.21,0.00039726,120]
[339670413,1727820781854,-500.0,0.00039726,120]
[339670414,1727820781865,-945.09,0.00039726,120]
[339670415,1727820781875,-500.0,0.00039726,120]
[339670416,1727820781885,-1347.25,0.00039726,120]
[339670417,1727820781894,-1869.39,0.00039726,120]
[339670418,1727820781904,-1047.64,0.00039726,120]